[Event "Paris GCT Rapid"]
[Site "Paris"]
[Date "2017.06.23"]
[Round "8"]
[White "Mamedyarov, Shakhriyar"]
[Black "Topalov, Veselin"]
[Result "1-0"]
[ECO "D31"]
[WhiteElo "2800"]
[BlackElo "2749"]
[PlyCount "69"]
[EventDate "2017.06.21"]
[EventType "tourn (rapid)"]
[EventRounds "9"]
[EventCountry "FRA"]
[EventCategory "22"]
[SourceTitle "CBM 179"]
[Source "ChessBase"]
[SourceDate "2017.07.12"]
[SourceVersion "1"]
[SourceVersionDate "2017.07.12"]
[SourceQuality "1"]
[TimeControl "1500"]

1. d4 {[%emt 0:00:00]} d5 {[%emt 0:00:00]} 2. c4 {[%emt 0:00:00]} e6 {[%emt 0:
00:00]} 3. Nc3 {[%emt 0:00:00]} Be7 {[%emt 0:00:00]} 4. cxd5 {[%emt 0:00:00]}
exd5 {[%emt 0:00:00]} 5. Bf4 {[%emt 0:00:00]} c6 {[%emt 0:00:00]} 6. e3 {
[%emt 0:00:00]} Bf5 {[%emt 0:00:00]} 7. Bd3 {[%emt 0:00:00]} Bxd3 {[%emt 0:00:
00]} 8. Qxd3 {[%emt 0:00:00]} Nf6 {[%emt 0:00:00]} 9. Nge2 {[%emt 0:00:00]}
Nbd7 {[%emt 0:00:00]} 10. h3 {[%emt 0:00:14]} O-O {[%emt 0:01:01]} 11. O-O {
[%emt 0:00:00]} Re8 {[%emt 0:00:00]} 12. f3 {[%emt 0:00:26]} b5 {[%emt 0:02:01]
} 13. a3 {[%emt 0:02:19]} a5 {[%emt 0:01:13]} 14. e4 {[%emt 0:00:34]} Nb6 {
[%emt 0:01:01]} 15. e5 {[%emt 0:02:21]} Nfd7 {[%emt 0:00:00]} 16. Bc1 {[%emt 0:
01:07]} b4 {[%emt 0:00:04]} 17. axb4 {[%emt 0:00:04]} axb4 {[%emt 0:00:00]} 18.
Rxa8 {[%emt 0:00:00]} Qxa8 {[%emt 0:00:00]} 19. Nd1 {[%emt 0:00:00]} c5 {
[%emt 0:00:03]} 20. f4 {[%emt 0:00:00]} Bf8 {[%emt 0:01:48]} 21. Kh2 {[%emt 0:
03:56]} Qa2 {[%emt 0:01:55]} 22. Ne3 {[%emt 0:01:06]} c4 {[%emt 0:00:15]} 23.
Qd1 {[%emt 0:00:00]} Qb3 {[%emt 0:03:10]} 24. Qe1 {[%emt 0:00:17]} f6 {[%emt 0:
00:58]} 25. Rf3 {[%emt 0:00:22]} Qa4 {[%emt 0:00:00]} 26. Qh4 {[%emt 0:00:11]}
Qc6 {[%emt 0:00:36]} 27. Rg3 {[%emt 0:00:00]} g6 {[%emt 0:02:18]} 28. f5 {
[%emt 0:01:33]} fxe5 {[%emt 0:00:00]} 29. fxg6 {[%emt 0:00:00]} hxg6 {[%emt 0:
00:00]} 30. Nf5 {[%emt 0:00:43]} Qf6 {[%emt 0:00:32]} 31. Qh5 {[%emt 0:00:00]}
Re6 {[%emt 0:00:45]} 32. Nh4 {[%emt 0:00:04]} Bg7 {[%emt 0:01:21]} 33. Nxg6 {
[%emt 0:00:28]} Qf7 {[%emt 0:00:04]} 34. Bh6 {[%emt 0:01:11]} Nf8 {[%emt 0:02:
47]} 35. Bxg7 {[%emt 0:00:32]} 1-0

[Event "Paris GCT Rapid"]
[Site "Paris"]
[Date "2017.06.23"]
[Round "9"]
[White "Topalov, Veselin"]
[Black "Nakamura, Hikaru"]
[Result "0-1"]
[ECO "D37"]
[WhiteElo "2749"]
[BlackElo "2785"]
[PlyCount "86"]
[EventDate "2017.06.21"]
[EventType "tourn (rapid)"]
[EventRounds "9"]
[EventCountry "FRA"]
[EventCategory "22"]
[SourceTitle "CBM 179"]
[Source "ChessBase"]
[SourceDate "2017.07.12"]
[SourceVersion "1"]
[SourceVersionDate "2017.07.12"]
[SourceQuality "1"]
[TimeControl "1500"]

1. d4 {[%emt 0:00:00]} Nf6 {[%emt 0:00:00]} 2. c4 {[%emt 0:00:00]} e6 {[%emt 0:
00:00]} 3. Nf3 {[%emt 0:00:00]} d5 {[%emt 0:00:00]} 4. Nc3 {[%emt 0:00:00]} Be7
{[%emt 0:00:00]} 5. Bf4 {[%emt 0:00:00]} O-O {[%emt 0:00:00]} 6. a3 {[%emt 0:
00:00]} c5 {[%emt 0:00:00]} 7. dxc5 {[%emt 0:00:00]} Bxc5 {[%emt 0:00:00]} 8.
e3 {[%emt 0:00:00]} Nc6 {[%emt 0:00:00]} 9. Qc2 {[%emt 0:00:00]} Qa5 {[%emt 0:
00:00]} 10. Nd2 {[%emt 0:00:00]} Bb4 {[%emt 0:00:00]} 11. cxd5 {[%emt 0:00:19]}
exd5 {[%emt 0:00:00]} 12. Nb3 {[%emt 0:00:00]} Bxc3+ {[%emt 0:00:00]} 13. bxc3
{[%emt 0:00:00]} Qd8 {[%emt 0:00:52]} 14. Be2 {[%emt 0:00:29]} Ne4 {[%emt 0:00:
06]} 15. f3 {[%emt 0:01:44]} Nf6 {[%emt 0:00:22]} 16. g4 {[%emt 0:02:25]} Be6 {
[%emt 0:00:06]} 17. O-O {[%emt 0:01:34]} Rc8 {[%emt 0:00:00]} 18. Qd2 {[%emt 0:
01:11]} Qe7 {[%emt 0:00:21]} 19. a4 {[%emt 0:00:28]} Nd7 {[%emt 0:00:16]} 20.
a5 {[%emt 0:00:32]} h5 {[%emt 0:01:10]} 21. h3 {[%emt 0:01:26]} g5 {[%emt 0:00:
44]} 22. Bg3 {[%emt 0:00:04]} f5 {[%emt 0:00:00]} 23. Nd4 {[%emt 0:01:45]} Nxd4
{[%emt 0:06:20]} 24. exd4 f4 {[%emt 0:00:06]} 25. Bf2 {[%emt 0:00:00]} Qd6 {
[%emt 0:00:00]} 26. Rfe1 {[%emt 0:00:00]} Bf7 {[%emt 0:00:00]} 27. Bb5 {
[%emt 0:00:11]} Rfe8 {[%emt 0:00:19]} 28. Bxd7 {[%emt 0:02:22]} Qxd7 {[%emt 0:
00:00]} 29. Re5 {[%emt 0:00:00]} Rxe5 {[%emt 0:01:20]} 30. dxe5 {[%emt 0:00:00]
} Re8 {[%emt 0:00:33]} 31. Bd4 {[%emt 0:00:39]} Re6 {[%emt 0:00:03]} 32. Rb1 {
[%emt 0:01:44]} Be8 {[%emt 0:02:09]} 33. Qb2 {[%emt 0:02:10]} b5 {[%emt 0:00:
00]} 34. axb6 {[%emt 0:00:00]} axb6 {[%emt 0:00:00]} 35. Ra1 {[%emt 0:00:00]}
hxg4 {[%emt 0:00:16]} 36. hxg4 {[%emt 0:00:00]} Qh7 {[%emt 0:01:41]} 37. Ra8 {
[%emt 0:01:57]} Rh6 {[%emt 0:00:00]} 38. Qg2 {[%emt 0:00:00]} Qb1+ {[%emt 0:00:
00]} 39. Kf2 {[%emt 0:00:00]} Qc2+ {[%emt 0:00:16]} 40. Kf1 {[%emt 0:00:00]}
Qd1+ {[%emt 0:00:47]} 41. Kf2 {[%emt 0:00:00]} Kf7 {[%emt 0:00:05]} 42. Ra2 {
[%emt 0:02:12]} Rh1 {[%emt 0:00:25]} 43. e6+ {[%emt 0:00:00]} Ke7 {[%emt 0:00:
14]} 0-1